fUST/lending_fUST_20260129
["ID","MTS","AMOUNT","RATE_DAILY","PERIOD"]
[403885074,1769628246936,-500.0,0.00012091,2]
[403885075,1769628246964,-500.0,0.00012091,2]
[403885076,1769628246990,-500.0,0.00012091,2]
[403885077,1769628247019,-300.0,0.00012092,2]
[403885078,1769628247046,-300.0,0.00012092,2]
[403885079,1769628247075,-1200.0,0.00012092,2]
[403885080,1769628247102,-367.701,0.00012092,2]
[403885081,1769628247128,-444.52062044,0.00012093,2]
[403885082,1769628247155,-500.0,0.00012093,2]
[403885083,1769628247180,-48840.69223416,0.00012094,2]
[403885084,1769628247204,-9387.71745789,0.00012167,2]
[403885085,1769628247228,-151.0,0.000122,2]
[403885086,1769628247255,-151.0,0.000122,2]
[403885087,1769628247281,-151.0,0.000122,2]
[403885088,1769628247308,-151.0,0.000122,2]
[403885089,1769628247336,-151.0,0.000122,2]
[403885090,1769628247362,-151.0,0.000122,2]
[403885091,1769628247386,-151.0,0.000122,2]
[403885092,1769628247412,-151.0,0.000122,2]
[403885093,1769628247438,-151.0,0.000122,2]
[403885094,1769628247464,-151.0,0.000122,2]
[403885095,1769628247489,-151.0,0.000122,2]
[403885096,1769628247518,-1700800.11827002,0.00012224,2]
[403885097,1769628272575,-19199.88172998,0.00012224,2]
[403885098,1769628272599,-4589.6544849,0.00012267,2]
[403885100,1769628490920,-450.12939607,0.0001186,2]
[403885101,1769628490948,-5000.0,0.0001198,2]
[403885102,1769628490973,-275.84718919,0.00012101,2]
[403885103,1769628495011,188.54129581,0.0001,2]
[403885107,1769628500484,5000.0,0.000123,2]
[403885109,1769628515081,-300.0,0.00012466,2]
[403885110,1769628515120,-600.0,0.00012467,2]
[403885111,1769628515155,-300.0,0.00012467,2]
[403885112,1769628515183,-1200.0,0.00012467,2]
[403885113,1769628515212,-300.0,0.00012468,2]
[403885114,1769628515240,-300.0,0.00012468,2]
[403885115,1769628515269,-300.0,0.00012468,2]
[403885116,1769628515297,-300.0,0.00012468,2]
[403885117,1769628515326,-300.0,0.00012468,2]
[403885118,1769628515354,-300.0,0.00012468,2]
[403885119,1769628515383,-300.0,0.00012468,2]
[403885120,1769628515412,-300.0,0.00012468,2]
[403885121,1769628515444,-300.0,0.00012468,2]
[403885122,1769628515470,-300.0,0.00012468,2]
[403885123,1769628515497,-300.0,0.00012468,2]
[403885124,1769628515727,-300.0,0.00012468,2]
[403885125,1769628515755,-300.0,0.00012468,2]
[403885126,1769628515782,-300.0,0.00012468,2]
[403885127,1769628515809,-300.0,0.00012468,2]
[403885128,1769628515834,-500.0,0.00012588,2]
[403885129,1769628515860,-500.0,0.00012588,2]
[403885130,1769628515886,-500.0,0.00012588,2]
[403885131,1769628515911,-500.0,0.00012588,2]
[403885132,1769628515938,-500.0,0.00012588,2]
[403885133,1769628515963,-500.0,0.00012588,2]
[403885134,1769628515992,-500.0,0.00012588,2]
[403885135,1769628516018,-603.9975254,0.000126,2]
[403885136,1769628516046,-500.0,0.00012724,2]
[403885137,1769628516073,-304.84192432,0.00012724,2]
[403885138,1769628516100,-500.0,0.00012724,2]
[403885139,1769628516126,-159.01547506,0.00012724,2]
[403885140,1769628516152,-500.0,0.00012724,2]
[403885141,1769628516178,-273.85577328,0.00012724,2]
[403885142,1769628516206,-500.0,0.00012724,2]
[403885143,1769628516232,-400.7034706,0.00012724,2]
[403885144,1769628516259,-178.0106533,0.00012724,2]
[403885145,1769628516285,-500.0,0.00012725,2]
[403885146,1769628516314,-500.0,0.00012725,2]
[403885147,1769628516343,-500.0,0.00012725,2]
[403885148,1769628516370,-500.0,0.00012725,2]
[403885149,1769628516399,-500.0,0.00012725,2]
[403885150,1769628516426,-500.0,0.00012725,2]
[403885151,1769628516451,-500.0,0.00012725,2]
[403885152,1769628516477,-200.57111926,0.00012725,2]
[403885153,1769628516503,-603.9975254,0.000128,2]
[403885154,1769628516528,-352.557881,0.000128,2]
[403885155,1769628516553,-500.0,0.00012862,2]
[403885156,1769628516579,-500.0,0.00012862,2]
[403885157,1769628516606,-500.0,0.00012862,2]
[403885158,1769628516630,-201.34473985,0.00012862,2]
[403885159,1769628516655,-500.0,0.00012862,2]
[403885160,1769628516680,-500.0,0.00012862,2]
[403885161,1769628516704,-600.0,0.00012862,2]
[403885162,1769628516729,-500.0,0.00012862,2]
[403885163,1769628516754,-500.0,0.00012862,2]
[403885164,1769628516779,-185.4228781,0.00012878,2]
[403885165,1769628516805,-185.4228781,0.00012878,2]
[403885166,1769628516829,-311.16443431,0.00012898,2]
[403885167,1769628516858,-1065124.57584095,0.00012899,2]
[403885171,1769628519036,5154.66727389,0.0001,2]
[403885172,1769628519581,2389.77736106,0.0001,2]
[403885173,1769628543896,-868.5188015,0.00012371,2]
[403885174,1769628544092,-500.0,0.00012724,2]
[403885175,1769628544120,-340.51336333,0.00012724,2]
[403885176,1769628544145,-5000.0,0.0001277,2]
[403885177,1769628544171,-300.0,0.00012898,2]
[403885178,1769628544200,-654875.42415905,0.00012899,2]
[403885179,1769628544227,-3883.43021948,0.000129,2]
[403885180,1769628544252,-500.0,0.00012999,2]
[403885181,1769628544281,-158.24791449,0.00012999,2]
[403885182,1769628544308,-500.0,0.00012999,2]
[403885183,1769628544337,-500.0,0.00012999,2]
[403885184,1769628544362,-503.23543832,0.00012999,2]
[403885185,1769628544389,-500.0,0.00012999,2]
[403885186,1769628544415,-207.53367083,0.00012999,2]
[403885187,1769628544439,-200.34117545,0.00012999,2]
[403885188,1769628544465,-250.0,0.00012999,2]
[403885189,1769628544492,-2736.94264847,0.00013,2]
[403885195,1769628551246,174.24,0.0001,2]
[403885238,1769628632005,-5000.0,0.00012598,2]
[403885240,1769628632015,-598.0,0.00012598,2]
[403885242,1769628632024,-300.0,0.00012724,2]
[403885244,1769628632033,-300.0,0.00012724,2]
[403885246,1769628632043,-1200.0,0.00012724,2]
[403885248,1769628632054,-500.0,0.00012725,2]
[403885250,1769628632064,-500.0,0.00012725,2]
[403885252,1769628632073,-500.0,0.00012725,2]
[403885254,1769628632083,-500.0,0.00012725,2]
[403885256,1769628632094,-500.0,0.00012725,2]
[403885258,1769628632105,-500.0,0.00012725,2]
[403885260,1769628632115,-500.0,0.00012862,2]
[403885262,1769628632124,-500.0,0.00012862,2]
[403885264,1769628632133,-500.0,0.00012862,2]
[403885266,1769628632146,-500.0,0.00012862,2]
[403885268,1769628632155,-500.0,0.00012862,2]
[403885270,1769628632165,-500.0,0.00012862,2]
[403885272,1769628632174,-500.0,0.00012999,2]
[403885274,1769628632183,-500.0,0.00012999,2]
[403885276,1769628632192,-500.0,0.00012999,2]
[403885278,1769628632202,-450.66953665,0.00012999,2]
[403885280,1769628632211,-500.0,0.00012999,2]
[403885282,1769628632220,-500.0,0.00012999,2]
[403885283,1769628632229,-500.0,0.00013136,2]
[403885285,1769628632238,-164.98871269,0.00013136,2]
[403885287,1769628632248,-500.0,0.00013136,2]
[403885289,1769628632258,-500.0,0.00013136,2]
[403885291,1769628632268,-500.0,0.00013136,2]
[403885293,1769628632277,-500.0,0.00013136,2]
[403885295,1769628632286,-500.0,0.00013136,2]
[403885296,1769628632296,-253.37170978,0.00013136,2]
[403885298,1769628632305,-500.0,0.00013136,2]
[403885300,1769628632314,-305.7197432,0.00013143,2]
[403885302,1769628632323,-232.38005702,0.00013151,2]
[403885303,1769628632332,-185.4228781,0.000132,2]
[403885304,1769628632341,-176.20020011,0.00013273,2]
[403885305,1769628632352,-500.0,0.00013273,2]
[403885306,1769628632362,-500.0,0.00013273,2]
[403885307,1769628632371,-500.0,0.00013273,2]
[403885308,1769628632391,-500.0,0.00013273,2]
[403885309,1769628632403,-500.0,0.00013273,2]
[403885310,1769628632413,-151.86770743,0.00013273,2]
[403885311,1769628632424,-500.0,0.00013273,2]
[403885312,1769628632434,-500.0,0.00013273,2]
[403885313,1769628632444,-500.0,0.00013273,2]
[403885314,1769628632454,-500.0,0.00013273,2]
[403885315,1769628632464,-500.0,0.00013273,2]
[403885316,1769628632474,-500.0,0.00013273,2]
[403885317,1769628632483,-185.4228781,0.000133,2]
[403885318,1769628632493,-185.4228781,0.000133,2]
[403885319,1769628632502,-185.4228781,0.000133,2]
[403885320,1769628632513,-300.0,0.00013398,2]
[403885321,1769628632522,-300.0,0.00013398,2]
[403885322,1769628632531,-300.0,0.00013398,2]
[403885323,1769628632541,-300.0,0.00013398,2]
[403885324,1769628632550,-300.0,0.00013398,2]
[403885325,1769628632560,-300.0,0.00013398,2]
[403885326,1769628632569,-300.0,0.00013398,2]
[403885327,1769628632579,-300.0,0.00013398,2]
[403885328,1769628632589,-300.0,0.00013398,2]
[403885329,1769628632601,-300.0,0.00013398,2]
[403885330,1769628632619,-300.0,0.00013398,2]
[403885331,1769628632628,-300.0,0.00013398,2]
[403885332,1769628632638,-300.0,0.00013398,2]
[403885333,1769628632648,-300.0,0.00013398,2]
[403885334,1769628632658,-300.0,0.00013398,2]
[403885335,1769628632668,-500.0,0.00013398,2]
[403885336,1769628632677,-500.0,0.0001341,2]
[403885337,1769628632686,-300.0,0.0001341,2]
[403885338,1769628632696,-500.0,0.0001341,2]
[403885339,1769628632706,-500.0,0.0001341,2]
[403885340,1769628632715,-8180.97126027,0.00013479,2]
[403885341,1769628632725,-500.0,0.00013547,2]
[403885342,1769628632734,-500.0,0.00013547,2]
[403885343,1769628632745,-500.0,0.00013547,2]
[403885344,1769628632756,-529.9180819,0.00013659,2]
[403885345,1769628632765,-600.0,0.00013665,2]
[403885346,1769628632774,-500.0,0.00013672,2]
[403885347,1769628632783,-300.0,0.00013673,2]
[403885348,1769628632793,-500.0,0.00013684,2]
[403885349,1769628632803,-500.0,0.00013684,2]
[403885350,1769628632812,-500.0,0.00013684,2]
[403885351,1769628632822,-217.81510401,0.00013697,2]
[403885352,1769628632832,-500.0,0.00013698,2]
[403885353,1769628632842,-500.0,0.00013698,2]
[403885354,1769628632851,-231.9426637,0.00013698,2]
[403885355,1769628632861,-500.0,0.00013698,2]
[403885356,1769628632870,-500.0,0.00013698,2]
[403885357,1769628632880,-500.0,0.00013698,2]
[403885358,1769628632891,-500.0,0.00013698,2]
[403885359,1769628632900,-500.0,0.00013698,2]
[403885360,1769628632910,-500.0,0.00013698,2]
[403885361,1769628632920,-500.0,0.00013698,2]
[403885362,1769628632929,-500.0,0.00013698,2]
[403885363,1769628632938,-500.0,0.00013698,2]
[403885364,1769628632948,-500.0,0.00013698,2]
[403885365,1769628632957,-245.05641761,0.00013698,2]
[403885366,1769628632966,-500.0,0.00013698,2]
[403885367,1769628632975,-500.0,0.00013698,2]
[403885368,1769628632985,-500.0,0.00013698,2]
[403885369,1769628632994,-199.72375222,0.00013698,2]
[403885370,1769628633003,-500.0,0.00013698,2]
[403885371,1769628633013,-500.0,0.00013698,2]
[403885372,1769628633026,-500.0,0.00013698,2]
[403885373,1769628633036,-500.0,0.00013698,2]
[403885374,1769628633045,-500.0,0.00013698,2]
[403885375,1769628633057,-500.0,0.00013698,2]
[403885376,1769628633068,-500.0,0.00013698,2]
[403885377,1769628633079,-500.0,0.00013698,2]
[403885378,1769628633091,-500.0,0.00013698,2]
[403885379,1769628633101,-321.00935932,0.00013698,2]
[403885380,1769628633111,-493.63025993,0.00013698,2]
[403885381,1769628633122,-500.0,0.00013698,2]
[403885382,1769628633132,-500.0,0.00013698,2]
[403885383,1769628633144,-500.0,0.00013698,2]
[403885384,1769628633154,-500.0,0.00013698,2]
[403885385,1769628633164,-500.0,0.00013698,2]
[403885386,1769628633174,-500.0,0.00013698,2]
[403885387,1769628633185,-500.0,0.00013698,2]
[403885388,1769628633194,-500.0,0.00013698,2]
[403885389,1769628633204,-500.0,0.00013698,2]
[403885390,1769628633214,-500.0,0.00013698,2]
[403885391,1769628633224,-500.0,0.00013698,2]
[403885392,1769628633234,-500.0,0.00013698,2]
[403885393,1769628633244,-500.0,0.00013698,2]
[403885394,1769628633254,-500.0,0.00013698,2]
[403885395,1769628633264,-179.13377455,0.00013698,2]
[403885396,1769628633274,-500.0,0.00013699,2]
[403885397,1769628633284,-500.0,0.00013699,2]
[403885398,1769628633294,-500.0,0.00013699,2]
[403885399,1769628633303,-500.0,0.00013699,2]
[403885400,1769628633312,-500.0,0.00013699,2]
[403885401,1769628633323,-500.0,0.00013699,2]
[403885402,1769628633333,-443.49274844,0.00013699,2]
[403885403,1769628633343,-260.16839164,0.00013699,2]
[403885404,1769628633356,-500.0,0.00013699,2]
[403885405,1769628633366,-500.0,0.00013699,2]
[403885406,1769628633376,-213.84661778,0.00013699,2]
[403885407,1769628633386,-500.0,0.00013699,2]
[403885408,1769628633398,-500.0,0.00013699,2]
[403885409,1769628633408,-320.04248703,0.00013699,2]
[403885410,1769628633418,-506.10991888,0.00013699,2]
[403885411,1769628633429,-500.0,0.00013699,2]
[403885412,1769628633439,-500.0,0.00013699,2]
[403885413,1769628633449,-445.1362178,0.00013699,2]
[403885414,1769628633459,-500.0,0.00013699,2]
[403885415,1769628633468,-500.0,0.00013699,2]
[403885416,1769628633478,-500.0,0.00013699,2]
[403885417,1769628633487,-500.0,0.00013699,2]
[403885418,1769628633497,-500.0,0.00013699,2]
[403885419,1769628633506,-501.77042598,0.00013699,2]
[403885420,1769628633516,-500.0,0.00013699,2]
[403885421,1769628633526,-500.0,0.00013699,2]
[403885422,1769628633535,-500.41621604,0.00013699,2]
[403885423,1769628633544,-500.0,0.00013699,2]
[403885424,1769628633554,-500.0,0.00013699,2]
[403885425,1769628633564,-500.0,0.00013699,2]
[403885426,1769628633574,-500.0,0.00013699,2]
[403885427,1769628633583,-500.0,0.00013699,2]
[403885428,1769628633593,-532.28183888,0.00013699,2]
[403885429,1769628633769,-500.0,0.00013699,2]
[403885430,1769628633780,-500.0,0.00013699,2]
[403885431,1769628633789,-500.0,0.00013699,2]
[403885432,1769628633799,-500.0,0.00013699,2]
[403885433,1769628633809,-501.93478625,0.00013699,2]
[403885434,1769628633819,-171.04650347,0.000137,2]
[403885435,1769628633832,-200.1631093,0.00013806,2]
[403885436,1769628633843,-1000.0,0.00013821,2]
[403885437,1769628633852,-1000.0,0.00013821,2]
[403885438,1769628633862,-1000.0,0.00013821,2]
[403885439,1769628633872,-1000.0,0.00013821,2]
[403885440,1769628633883,-1000.0,0.00013821,2]
[403885441,1769628633893,-500.0,0.00013821,2]
[403885442,1769628633902,-500.0,0.00013821,2]
[403885443,1769628633911,-500.0,0.00013821,2]
[403885444,1769628633921,-500.0,0.00013946,2]
[403885445,1769628633931,-415.41821725,0.00013958,2]
[403885446,1769628633942,-237.93601152,0.00013958,2]
[403885447,1769628633952,-500.0,0.00013958,2]
[403885448,1769628633961,-301.0,0.00013958,2]
[403885449,1769628633971,-420.0,0.00013958,2]
[403885450,1769628633981,-1680.0,0.00013996,2]
[403885451,1769628633990,-500.0,0.00014095,2]
[403885452,1769628633999,-500.0,0.0001422,2]
[403885453,1769628634009,-600.0,0.00014221,2]
[403885454,1769628634019,-383.43476633,0.00014232,2]
[403885455,1769628634028,-1003.36640104,0.00014247,2]
[403885456,1769628634037,-502.14214416,0.00014247,2]
[403885457,1769628634046,-928.72037754,0.00014247,2]
[403885458,1769628634056,-1146.16076302,0.00014247,2]
[403885459,1769628634065,-653.67992137,0.00014247,2]
[403885460,1769628634074,-172.30391573,0.00014247,2]
[403885461,1769628634084,-1000.0,0.00014247,2]
[403885462,1769628634093,-1000.0,0.00014247,2]
[403885463,1769628634103,-501.75253763,0.00014247,2]
[403885464,1769628634112,-898.31661661,0.00014247,2]
[403885465,1769628634122,-626.86038304,0.00014247,2]
[403885466,1769628634132,-175.49146446,0.00014247,2]
[403885467,1769628634142,-508.49522103,0.00014247,2]
[403885468,1769628634151,-501.48666107,0.00014247,2]
[403885469,1769628634161,-653.47281249,0.00014247,2]
[403885470,1769628634171,-1000.0,0.00014247,2]
[403885471,1769628634181,-378.71570647,0.00014247,2]
[403885472,1769628634191,-1000.0,0.00014247,2]
[403885473,1769628634201,-1000.0,0.00014247,2]
[403885474,1769628634211,-505.03835844,0.00014247,2]
[403885475,1769628634221,-1002.16076125,0.00014247,2]
[403885476,1769628634230,-501.67094293,0.00014247,2]
[403885477,1769628634240,-1001.40716094,0.00014247,2]
[403885478,1769628634249,-1000.0,0.00014247,2]
[403885479,1769628634259,-509.85507396,0.00014247,2]
[403885480,1769628634268,-159.31465189,0.00014247,2]
[403885481,1769628634278,-559.62347172,0.00014247,2]
[403885489,1769628638038,-240.98114426,0.00014247,2]
[403885490,1769628638049,-250.0,0.00014247,2]
[403885491,1769628638059,-1500.0,0.00014368,2]
[403885492,1769628638069,-1500.0,0.00014368,2]
[403885493,1769628638079,-1500.0,0.00014368,2]
[403885494,1769628638091,-1500.0,0.00014368,2]
[403885495,1769628638102,-1500.0,0.00014368,2]
[403885496,1769628638112,-900.0,0.00014768,2]
[403885497,1769628638122,-500.0,0.00014795,2]
[403885498,1769628638133,-1196.49020811,0.00014795,2]
[403885499,1769628638144,-500.68775555,0.00014795,2]
[403885500,1769628638156,-526.28781016,0.00014795,2]
[403885501,1769628638167,-1500.0,0.00014795,2]
[403885502,1769628638179,-500.0,0.00014795,2]
[403885503,1769628638189,-300.0,0.00014795,2]
[403885504,1769628638201,-295.51234803,0.00014916,2]
[403885505,1769628638212,-2000.0,0.00014916,2]
[403885506,1769628638223,-2000.0,0.00014916,2]
[403885507,1769628638233,-2000.0,0.00014916,2]
[403885508,1769628638244,-2000.0,0.00014916,2]
[403885509,1769628638254,-29693.44342623,0.0001499,2]
[403885510,1769628638267,-70306.55657377,0.0001499,2]
[403885511,1769628638278,-11230.08306976,0.00015,2]
[403885512,1769628638288,-40878.38369255,0.00015,2]
[403885513,1769628638300,-720.0,0.00015031,2]
[403885514,1769628638310,-360.74929697,0.00015143,2]
[403885515,1769628638321,-587.0,0.00015311,2]
[403885516,1769628638331,-993.63223956,0.00015316,2]
[403885517,1769628638342,-2000.0,0.00015342,2]
[403885518,1769628638352,-2351.0,0.00015396,2]
[403885519,1769628638363,-862224.75211309,0.000154,2]
[403885520,1769628638372,-1193.38,0.000154,2]
[403885521,1769628638383,-1193.38,0.000154,2]
[403885522,1769628638398,-1193.38,0.000154,2]
[403885523,1769628638408,-1193.38,0.000154,2]
[403885524,1769628638418,-1193.38,0.000154,2]
[403885525,1769628638429,-1193.38,0.000154,2]
[403885526,1769628638439,-1193.38,0.000154,2]
[403885527,1769628638452,-1193.38,0.000154,2]
[403885528,1769628638463,-1193.38,0.000154,2]
[403885529,1769628638473,-1193.38,0.000154,2]
[403885530,1769628638483,-1193.38,0.000154,2]
[403885531,1769628638493,-1193.38,0.000154,2]
[403885532,1769628638502,-1193.38,0.000154,2]
[403885533,1769628638512,-1193.38,0.000154,2]
[403885534,1769628638522,-1193.38,0.000154,2]
[403885535,1769628638532,-1193.38,0.000154,2]
[403885536,1769628638542,-1193.38,0.000154,2]
[403885537,1769628638552,-1193.38,0.000154,2]
[403885538,1769628638563,-1193.38,0.000154,2]
[403885539,1769628638573,-1193.38,0.000154,2]
[403885540,1769628638583,-1193.38,0.000154,2]
[403885541,1769628638593,-1193.38,0.000154,2]
[403885542,1769628638603,-1193.38,0.000154,2]
[403885543,1769628638614,-3883.43021948,0.00015456,2]
[403885544,1769628638623,-1355.419529,0.00015464,2]
[403885545,1769628638633,-2500.0,0.00015464,2]
[403885546,1769628638647,-2500.0,0.00015464,2]
[403885547,1769628638657,-1007.06964924,0.00015464,2]
[403885548,1769628638668,-5038.08922706,0.0001564,2]
[403885549,1769628638678,-2500.0,0.0001589,2]
[403885550,1769628638688,-216.23346271,0.00016,2]
[403885551,1769628638700,-3000.0,0.00016012,2]
[403885552,1769628638710,-3074.12268118,0.00016012,2]
[403885553,1769628638720,-200.0,0.00016438,2]
[403885554,1769628638731,-500.0,0.00016438,2]
[403885555,1769628638741,-376.51830935,0.00016438,2]
[403885556,1769628638755,-164.57351573,0.00016438,2]
[403885557,1769628638765,-150.42150351,0.00016438,2]
[403885558,1769628638775,-3000.0,0.00016438,2]
[403885559,1769628638785,-185.13,0.0001644,2]
[403885560,1769628638796,-185.13,0.0001644,2]
[403885561,1769628638805,-185.13,0.0001644,2]
[403885562,1769628638815,-200.0,0.00016473,2]
[403885563,1769628638826,-864.0,0.00016535,2]
[403885564,1769628638836,-3500.0,0.0001656,2]
[403885565,1769628638846,-250.0,0.00016646,2]
[403885566,1769628638856,-823.0,0.00016796,2]
[403885567,1769628638866,-2471.0,0.00016936,2]
[403885568,1769628638875,-160.0,0.00016946,2]
[403885569,1769628638885,-3500.0,0.00016986,2]
[403885570,1769628638897,-92124.15564802,0.00017,2]
[403885571,1769628638907,-1041.66666667,0.00017055,2]
[403885572,1769628638917,-160.0,0.00017055,2]
[403885573,1769628638928,-3500.0,0.00017108,2]
[403885574,1769628638937,-415.77885075,0.00017143,2]
[403885575,1769628638947,-4000.0,0.00017534,2]
[403885576,1769628638956,-2141.16843233,0.000176,2]
[403885577,1769628638966,-210.218708,0.00017808,7]
[403885578,1769628638975,-4757.950026,0.00017808,7]
[403885579,1769628638986,-150.12313849,0.00017808,2]
[403885580,1769628638996,-281.81382901,0.00017842,2]
[403885581,1769628639006,-475.795003,0.00017842,7]
[403885582,1769628639016,-135573.83356864,0.00018,2]
[403885583,1769628639026,-203.912144,0.00018,7]
[403885584,1769628639036,-126062.66862741,0.00018,2]
[403885585,1769628639045,-3883.43021948,0.00018013,2]
[403885586,1769628639055,-4500.0,0.00018082,2]
[403885587,1769628639065,-1000.0,0.00018188,2]
[403885588,1769628639075,-9548.19578351,0.000183,3]
[403885589,1769628639085,-1152.0,0.00018425,2]
[403885590,1769628639096,-5000.0,0.0001863,2]
[403885591,1769628639105,-69497.33252454,0.00019,2]
[403885592,1769628639116,-2603.49,0.00019,2]
[403885593,1769628639126,-11694.55470091,0.00019,2]
[403885594,1769628639135,-4130.68903641,0.00019133,2]
[403885595,1769628639145,-470.80840452,0.00019143,2]
[403885596,1769628639155,-508.0614,0.00019178,2]
[403885597,1769628639165,-508.0614,0.00019178,2]
[403885598,1769628639175,-200.0,0.00019178,2]
[403885599,1769628639184,-508.0614,0.00019178,2]
[403885600,1769628639194,-508.0614,0.00019178,2]
[403885601,1769628639205,-2194.85911576,0.00019178,2]
[403885602,1769628639216,-160.5,0.000192,2]
[403885603,1769628639225,-172.01,0.000192,2]
[403885604,1769628639235,-1381.6,0.000192,2]
[403885605,1769628639244,-5520.1,0.000192,2]
[403885606,1769628639254,-1359.414293,0.00019233,7]
[403885607,1769628639265,-287.65253593,0.0002,3]
[403885608,1769628639274,-508.0614,0.0002,4]
[403885609,1769628639283,-508.0614,0.0002,4]
[403885610,1769628639292,-9506.71508995,0.0002,2]
[403885611,1769628639302,-349308.87962667,0.0002,2]
[403885612,1769628639312,-1000.0,0.00020007,2]
[403885613,1769628639322,-244.0,0.00020007,2]
[403885614,1769628639331,-1613.0,0.00020212,2]
[403885615,1769628639342,-508.0614,0.00020411,5]
[403885616,1769628639355,-508.0614,0.00020411,5]
[403885617,1769628639364,-3883.43021948,0.0002057,2]
[403885618,1769628639374,-4130.68903637,0.00020882,2]
[403885619,1769628639383,-525.8379583,0.00021143,2]
[403885620,1769628639394,-1000.0,0.00022008,10]
[403885621,1769628639404,-492.0,0.00022008,10]
[403885622,1769628639415,-276.01,0.000221,2]
[403885623,1769628639425,-293.17,0.000221,7]
[403885624,1769628639435,-2032.0,0.00022172,2]
[403885625,1769628639444,-4130.68903637,0.00022631,2]
[403885626,1769628639453,-160.0,0.00023,3]
[403885627,1769628639463,-1041.66666667,0.00023,3]
[403885628,1769628639472,-3883.43021948,0.00023128,2]
[403885629,1769628639481,-580.86751207,0.00023143,2]
[403885630,1769628639491,-276.13,0.00023594,2]
[403885631,1769628639501,-5520.1,0.000236,2]
[403885632,1769628639511,-1000.0,0.00024208,10]
[403885633,1769628639520,-791.0,0.00024208,10]
[403885634,1769628639530,-1381.6,0.000243,14]
[403885635,1769628639542,-4130.68903637,0.00024379,2]
[403885636,1769628639551,-610879.379074,0.000249,2]
[403885637,1769628639561,-635.89706585,0.00025143,2]
[403885638,1769628639571,-293.17,0.000255,7]
[403885639,1769628639580,-3883.43021948,0.00025685,2]
[403885640,1769628639590,-153000.00000066,0.00026,30]
[403885641,1769628639599,-1041.66666667,0.00026,30]
[403885642,1769628639610,-160.0,0.00026027,19]
[403885643,1769628639619,-160.5,0.000266,7]
[403885644,1769628639629,-1000.0,0.00026629,30]
[403885645,1769628639638,-1000.0,0.00026629,30]
[403885646,1769628639649,-190.69263435,0.00026678,5]
[403885647,1769628639658,-1041.66666667,0.000268,30]
[403885648,1769628639668,-276.01,0.000269,2]
[403885649,1769628639677,-167.0,0.00027,7]
[403885651,1769628639687,-690.92661962,0.00027143,2]
[403885652,1769628639696,-5520.1,0.000273,2]
[403885653,1769628639706,-157.1173049,0.00027397,2]
[403885654,1769628639715,-190.69263435,0.00027432,5]
[403885655,1769628639725,-1041.66666667,0.000276,30]
[403885656,1769628639734,-1071.528267,0.000278,4]
[403885657,1769628639743,-250.0,0.00027945,5]
[403885658,1769628639753,-250.0,0.00027945,5]
[403885659,1769628639762,-3883.43021948,0.00028242,2]
[403885660,1769628639771,-1000.0,0.000283,4]
[403885661,1769628639781,-350.0,0.00028493,5]
[403885662,1769628639790,-350.0,0.00028493,5]
[403885663,1769628639800,-1381.6,0.000285,14]
[403885664,1769628639809,-293.17,0.000285,7]
[403885665,1769628639819,-4246.65524428,0.00028646,2]
[403885666,1769628639829,-151.0,0.00028646,2]
[403885667,1769628639839,-151.0,0.00028646,2]